bitfinex/quotes_ETHUSD_20240902
["timestamp","ask_amount","ask_price","bid_price","bid_amount"]
[1725285327574,1.0,2515.9,2515.7,0.94088743]
[1725285331604,1.0,2515.9,2515.8,4.21141436]
[1725285331913,1.0,2515.9,2515.8,7.21141436]
[1725285333065,1.0,2515.9,2515.8,3.0]
[1725285333263,1.0,2515.9,2515.7,3.94088743]
[1725285333501,1.0,2515.9,2515.8,3.03849838]
[1725285333707,1.0,2515.9,2515.8,6.03849838]
[1725285340987,4.97472,2515.9,2515.8,6.03849838]
[1725285341186,4.97472,2515.9,2515.8,3.0]
[1725285342612,4.97472,2515.9,2515.6,3.0]
[1725285343120,3.97488,2515.8,2515.6,3.0]
[1725285344101,3.97503,2515.7,2515.6,3.0]
[1725285346300,3.97503,2515.7,2515.6,6.27957532]
[1725285347520,3.97503,2515.7,2515.6,3.0]
[1725285347697,3.97503,2515.7,2515.5,3.0]
[1725285348226,3.97489,2515.8,2515.5,3.0]
[1725285348421,3.97489,2515.8,2515.6,0.55957532]
[1725285351099,3.97503,2515.7,2515.5,3.0]
[1725285352236,7.95017,2515.7,2515.4,3.81463889]
[1725285352535,3.97522,2515.6,2515.4,3.81463889]
[1725285353739,3.97505,2515.7,2515.5,2.36046389]
[1725285354041,3.97489,2515.8,2515.6,2.2933]
[1725285354342,7.94986,2515.8,2515.6,6.31825171]
[1725285355427,3.97503,2515.7,2515.6,6.31825171]
[1725285357620,3.97503,2515.7,2515.6,4.02495171]
[1725285357936,3.97503,2515.7,2515.6,3.0]
[1725285358150,3.97503,2515.7,2515.4,2.59575325]
[1725285358151,3.97519,2515.6,2515.5,3.0]
[1725285358314,3.97519,2515.6,2515.4,4.78111436]
[1725285358714,3.97519,2515.6,2515.4,3.0]
[1725285361216,3.97519,2515.6,2515.5,2.279]
[1725285361445,3.97519,2515.6,2515.5,3.0]
[1725285361848,3.97519,2515.6,2515.4,3.0]
[1725285363245,1.0,2515.9,2515.4,3.0]
[1725285363246,3.97505,2515.7,2515.4,3.0]
[1725285364667,3.97505,2515.7,2515.4,6.08275044]
[1725285366531,3.9752,2515.6,2515.4,6.08275044]
[1725285366731,3.9752,2515.6,2515.4,3.0]
[1725285368257,7.95051,2515.6,2515.4,3.0]
[1725285368581,3.9752,2515.6,2515.4,3.0]
[1725285368801,7.95051,2515.6,2515.4,3.0]
[1725285368937,3.9752,2515.6,2515.4,3.0]
[1725285369276,3.97505,2515.7,2515.4,3.0]
[1725285369439,3.97505,2515.7,2515.4,2.3885]
[1725285369635,3.97505,2515.7,2515.4,5.3885]
[1725285371643,3.97505,2515.7,2515.5,0.71696144]
[1725285371978,3.97505,2515.7,2515.5,3.0]
[1725285372584,3.97505,2515.7,2515.4,2.3885]
[1725285372585,3.97505,2515.7,2515.4,5.3885]
[1725285372876,3.97498,2515.8,2515.4,5.3885]
[1725285373084,3.97498,2515.8,2515.4,9.364]
[1725285373382,7.94995,2515.8,2515.5,0.95007745]
[1725285373543,7.94995,2515.8,2515.5,3.95007745]
[1725285373914,3.97497,2515.8,2515.5,3.95007745]
[1725285374980,4.97479,2515.9,2515.5,7.92535745]
[1725285375196,1.0,2515.9,2515.7,1.78111436]
[1725285375470,4.97477,2515.9,2515.7,3.0]
[1725285375855,4.97477,2515.9,2515.6,3.0]
[1725285377252,8.9496,2515.9,2515.6,3.0]
[1725285377757,3.97489,2515.8,2515.6,3.0]
[1725285380979,3.97503,2515.7,2515.6,3.0]
[1725285381560,3.97547,2515.5,2515.3,19.79]
[1725285381841,3.97551,2515.4,2515.3,19.79]
[1725285382398,3.97551,2515.4,2515.0,2.2952]
[1725285382627,3.97551,2515.4,2515.1,1.78111436]
[1725285383020,7.9511,2515.4,2515.1,1.78111436]
[1725285383229,3.97551,2515.4,2515.1,4.78111436]
[1725285383916,3.97567,2515.3,2515.1,4.78111436]
[1725285384445,3.97582,2515.2,2514.9,19.79]
[1725285384612,3.97582,2515.2,2514.9,21.97471085]
[1725285384941,7.95178,2515.2,2514.9,20.19359649]
[1725285385153,3.97582,2515.2,2514.9,19.79]
[1725285385354,3.97614,2515.0,2514.9,19.79]
[1725285386142,7.95228,2515.0,2514.9,19.79]
[1725285387354,7.95228,2515.0,2514.9,22.79]
[1725285387722,8.980288,2515.0,2514.9,3.0]
[1725285387912,8.980288,2515.0,2514.5,3.0]
[1725285387913,3.97675,2514.7,2514.5,3.0]
[1725285388211,3.97677,2514.6,2514.5,3.0]
[1725285388412,3.97709,2514.4,2514.3,27.2]
[1725285389355,7.95503,2514.2,2513.9,21.57111436]
[1725285389652,3.97751,2514.2,2513.9,23.79]
[1725285389860,3.97772,2514.0,2513.9,4.0]
[1725285390315,3.97793,2513.9,2513.6,21.57111436]
[1725285390517,3.97793,2513.9,2513.7,1.68394236]
[1725285391478,3.97793,2513.9,2513.6,21.57111436]
[1725285392056,3.97772,2514.0,2513.6,21.57111436]
[1725285392242,3.97772,2514.0,2513.7,3.0]
[1725285392609,7.95554,2514.0,2513.7,3.0]
[1725285393259,3.97788,2513.9,2513.7,3.0]
[1725285394816,3.97772,2514.0,2513.7,3.0]
[1725285398350,3.97757,2514.1,2513.8,2.2519]
[1725285398912,3.97751,2514.2,2513.8,4.03301436]
[1725285399114,3.97751,2514.2,2513.9,3.0]
[1725285399115,3.97749,2514.2,2513.9,3.0]
[1725285399916,3.97757,2514.1,2513.9,3.0]
[1725285400856,3.97741,2514.2,2513.9,3.0]
[1725285401032,3.97757,2514.1,2513.9,3.0]
[1725285402929,3.97757,2514.1,2513.8,4.78111436]
[1725285405790,3.97824,2513.7,2513.2,4.03221436]
[1725285405954,3.97849,2513.6,2513.2,4.03221436]
[1725285406274,3.97854,2513.5,2513.2,4.03221436]
[1725285407060,3.97799,2513.9,2513.4,5.75971436]
[1725285407255,7.95596,2513.9,2513.5,3.0]
[1725285407456,3.97797,2513.9,2513.5,3.0]
[1725285407843,7.95594,2513.9,2513.5,3.0]
[1725285408043,3.97821,2513.7,2513.5,3.0]
[1725285408285,3.97821,2513.7,2513.4,4.78111436]
[1725285408645,3.97804,2513.8,2513.4,4.78111436]
[1725285411040,3.97788,2513.9,2513.4,8.75978436]
[1725285411241,5.011593,2514.1,2513.6,6.43433]
[1725285411576,3.97768,2514.1,2513.7,3.0]
[1725285411779,7.95536,2514.1,2513.7,3.0]
[1725285412088,3.97768,2514.1,2513.7,3.0]
[1725285413294,7.95536,2514.1,2513.7,3.0]
[1725285413496,3.97768,2514.1,2513.7,3.0]
[1725285413880,7.95535,2514.1,2513.7,3.0]
[1725285414497,3.97767,2514.1,2513.7,3.0]
[1725285414985,7.95535,2514.1,2513.7,3.0]
[1725285415437,3.97767,2514.1,2513.7,3.0]
[1725285415909,7.95534,2514.1,2513.7,3.0]
[1725285416585,3.97741,2514.2,2513.6,11.21544436]
[1725285418802,3.97757,2514.1,2513.6,11.21544436]
[1725285420131,3.97734,2514.3,2513.8,3.97795]
[1725285420284,3.97734,2514.3,2514.0,2.3392]
[1725285420484,3.97709,2514.4,2514.0,2.3392]
[1725285422333,3.97726,2514.3,2514.0,2.3392]
[1725285422871,3.97726,2514.3,2513.9,3.0]
[1725285423157,3.97748,2514.2,2513.8,5.3392]
[1725285423520,3.97767,2514.1,2513.8,3.0]
[1725285423717,3.97796,2513.9,2513.6,3.0]
[1725285423942,3.97804,2513.8,2513.5,4.78111436]
[1725285424134,3.97804,2513.8,2513.5,3.0]
[1725285424643,3.97804,2513.8,2513.4,5.3392]
[1725285425657,3.97793,2513.9,2513.5,1.78111436]
[1725285425817,3.97793,2513.9,2513.5,4.78111436]
[1725285427459,3.97836,2513.6,2513.3,21.57111436]
[1725285428253,7.95679,2513.6,2513.3,21.57111436]
[1725285428456,3.97836,2513.6,2513.3,21.57111436]
[1725285428656,3.97836,2513.6,2513.4,3.0]
[1725285429522,7.9568,2513.6,2513.4,3.0]
[1725285430023,3.97836,2513.6,2513.4,3.0]
[1725285435127,7.95685,2513.6,2513.4,3.0]
[1725285435443,3.97851,2513.5,2513.4,3.0]
[1725285436851,7.95685,2513.6,2513.4,3.0]
[1725285437077,3.97836,2513.6,2513.4,3.0]
[1725285437859,7.95683,2513.6,2513.3,3.0]
[1725285439039,3.97836,2513.6,2513.3,3.0]
[1725285440483,7.95683,2513.6,2513.3,3.0]
[1725285441244,3.97836,2513.6,2513.3,3.0]
[1725285443362,3.97836,2513.6,2513.3,6.50247044]
[1725285444786,3.97817,2513.8,2513.4,2.4639]
[1725285444990,3.97827,2513.7,2513.4,2.4639]
[1725285445489,3.97827,2513.7,2513.3,3.0]
[1725285446648,3.97836,2513.6,2513.3,3.0]
[1725285450069,7.95681,2513.6,2513.3,3.0]
[1725285450481,3.97853,2513.5,2513.3,3.0]
[1725285453292,3.97853,2513.5,2513.3,4.78111436]
[1725285453501,3.97843,2513.6,2513.3,7.8642488]
[1725285453702,3.97843,2513.6,2513.4,2.2688]
[1725285453874,3.97821,2513.7,2513.4,2.2688]
[1725285454211,3.97789,2513.9,2513.4,9.63752188]
[1725285454369,3.97789,2513.9,2513.5,3.0]
[1725285457410,3.97806,2513.8,2513.5,3.0]
[1725285461814,3.97789,2513.9,2513.5,3.0]
[1725285463418,5.020443,2513.9,2513.5,3.0]
[1725285464324,3.97806,2513.8,2513.5,3.0]
[1725285464627,3.97829,2513.7,2513.5,3.0]
[1725285465128,3.97835,2513.6,2513.5,3.0]
[1725285465488,10.4063,2513.6,2513.5,3.0]
[1725285467487,3.97865,2513.5,2513.1,3.0]
[1725285467802,3.97865,2513.5,2513.1,4.78111436]
[1725285468013,3.97865,2513.5,2513.2,2.4291]
[1725285469851,3.97831,2513.7,2513.2,3.90393373]
[1725285470002,3.97839,2513.6,2513.3,5.3702]
[1725285474714,3.97839,2513.6,2513.3,2.3702]
[1725285477078,3.97839,2513.6,2513.2,3.37389352]
[1725285478275,7.95686,2513.6,2513.2,3.37389352]
[1725285478452,7.95684,2513.6,2513.2,3.37389352]
[1725285478647,3.97839,2513.6,2513.2,3.37389352]
[1725285479160,7.95687,2513.6,2513.2,3.37389352]
[1725285479974,3.97853,2513.5,2513.2,3.37389352]
[1725285480886,3.97874,2513.4,2513.2,3.37389352]
[1725285482379,3.97853,2513.5,2513.2,3.37389352]
[1725285482880,3.97874,2513.4,2513.2,3.37389352]
[1725285483080,3.97874,2513.4,2513.2,3.0]
[1725285483258,3.97874,2513.4,2513.1,2.3485]
[1725285483259,3.97896,2513.3,2513.1,3.0]
[1725285483460,3.97899,2513.2,2513.1,3.0]
[1725285483657,3.97899,2513.2,2513.0,27.2]
[1725285485195,7.95813,2513.2,2513.1,3.0]
[1725285485487,3.97927,2513.1,2513.0,3.0]
[1725285486644,2.357,2512.9,2512.2,2.3587105]
[1725285486848,3.97981,2512.7,2512.2,2.2894]
[1725285487149,6.33653,2512.9,2512.2,2.2894]
[1725285487491,3.98043,2512.3,2511.9,2.2894]
[1725285487653,4.613373,2512.8,2512.1,5.76182436]
[1725285487848,3.97994,2512.6,2512.2,2.2894]
[1725285488189,3.97978,2512.7,2512.3,1.78111436]
[1725285488685,3.97978,2512.7,2512.3,4.78111436]
[1725285489654,7.95968,2512.7,2512.3,4.78111436]
[1725285489999,3.97995,2512.6,2512.3,3.0]
[1725285490152,3.97995,2512.6,2512.2,5.2894]
[1725285490550,3.97978,2512.7,2512.2,9.26994]
[1725285490763,7.95964,2512.7,2512.2,9.26994]
[1725285490963,3.97978,2512.7,2512.2,9.26994]
[1725285491250,3.98011,2512.5,2512.2,3.0]
[1725285491548,3.98011,2512.5,2512.1,5.3204]
[1725285491865,3.97978,2512.7,2512.1,11.16180666]
[1725285491866,7.95982,2512.7,2512.1,11.16180666]
[1725285492063,3.98012,2512.5,2512.1,7.18111666]
[1725285492450,3.98012,2512.5,2512.1,7.10151436]
[1725285492645,3.98012,2512.5,2512.1,5.3204]
[1725285492852,3.98027,2512.4,2512.1,5.3204]
[1725285493086,3.98027,2512.4,2512.2,3.0]
[1725285493394,3.98012,2512.5,2512.1,2.3204]
[1725285493814,2.4735,2512.7,2512.1,2.3204]
[1725285494092,3.9802,2512.5,2512.1,2.3204]
[1725285494303,3.98027,2512.4,2512.1,2.3204]
[1725285494518,3.118801,2512.7,2512.0,3.0]
[1725285494519,3.98058,2512.2,2512.0,3.0]
[1725285494667,3.98058,2512.2,2511.9,2.4096]
[1725285494851,3.98042,2512.3,2511.9,4.19071436]
[1725285495148,3.98042,2512.3,2512.0,3.0]
[1725285496161,7.9607,2512.4,2512.0,3.0]
[1725285496358,7.96073,2512.4,2512.0,3.0]
[1725285496945,3.98,2512.6,2512.0,6.98088]
[1725285497147,3.97959,2512.9,2512.4,2.3321]
[1725285497385,3.97969,2512.8,2512.5,0.41132144]
[1725285497561,3.97969,2512.8,2512.5,3.0]
[1725285497780,3.97994,2512.6,2512.5,3.0]
[1725285498684,3.97959,2512.9,2512.5,3.0]
[1725285498881,3.97975,2512.8,2512.5,3.0]
[1725285499082,3.97994,2512.6,2512.5,3.0]
[1725285499593,3.97953,2512.9,2512.5,3.0]
[1725285499796,7.95908,2512.9,2512.5,3.0]
[1725285501407,0.28904555,2513.6,2512.8,1.78111436]
[1725285501408,2.54984555,2513.6,2512.8,1.78111436]
[1725285501749,1.65572097,2513.7,2512.8,1.78111436]
[1725285501750,3.9786,2513.5,2513.0,4.20201436]
[1725285501908,3.97836,2513.6,2513.1,3.0]
[1725285502310,3.97851,2513.5,2513.1,3.0]
[1725285502459,3.97908,2513.2,2512.9,3.0]
[1725285502772,3.97927,2513.1,2512.9,3.0]
[1725285504063,7.95819,2513.2,2512.9,3.0]
[1725285504493,3.97916,2513.1,2512.9,3.0]
[1725285505162,3.97908,2513.2,2512.9,3.0]
[1725285506392,3.97908,2513.2,2512.7,27.2]
[1725285506393,3.97908,2513.2,2512.8,3.0]
[1725285506582,3.97879,2513.4,2512.8,6.356303]
[1725285506785,3.97893,2513.3,2512.8,6.356303]
[1725285507190,3.97899,2513.2,2512.8,6.356303]
[1725285507408,3.97899,2513.2,2512.8,3.0]
[1725285509810,7.95808,2513.2,2512.8,3.0]
[1725285509984,3.97899,2513.2,2512.8,3.0]
[1725285510184,7.9581,2513.2,2512.8,3.0]
[1725285510397,6.33918,2513.5,2512.8,3.0]
[1725285510582,3.97938,2513.0,2512.8,3.0]
[1725285514374,3.97915,2513.1,2512.8,3.0]
[1725285515207,3.97888,2513.3,2512.8,6.97959]
[1725285515389,3.97888,2513.3,2512.9,2.4039]
[1725285519279,3.97854,2513.5,2512.9,2.48348352]
[1725285519524,3.97854,2513.5,2512.9,2.4039]
[1725285519891,3.97875,2513.4,2512.9,6.38329]
[1725285520128,3.97875,2513.4,2513.0,3.0]
[1725285521945,3.97884,2513.3,2513.0,3.0]
[1725285522112,3.97884,2513.3,2512.9,2.4039]
[1725285522437,3.97916,2513.1,2512.8,3.0]
[1725285522606,3.97916,2513.1,2512.7,3.0]
[1725285523297,3.97906,2513.2,2512.7,3.0]
[1725285523527,3.97938,2513.0,2512.7,3.0]
[1725285524608,3.97938,2513.0,2512.6,5.4751]
[1725285525017,3.97946,2512.9,2512.6,5.88717839]
[1725285525197,3.97946,2512.9,2512.6,5.4751]
[1725285525536,3.97938,2513.0,2512.6,5.4751]
[1725285526940,3.97938,2513.0,2512.6,25.2651]
[1725285527096,3.97938,2513.0,2512.6,28.930618]
[1725285528535,3.97915,2513.1,2512.7,2.4623]
[1725285528737,3.9791,2513.2,2512.8,2.4623]
[1725285528943,3.97877,2513.4,2512.8,2.4623]
[1725285528944,3.97883,2513.3,2512.8,2.4623]
[1725285529243,3.97883,2513.3,2512.9,2.4623]
[1725285529449,3.97883,2513.3,2512.9,5.4623]
[1725285530726,3.97871,2513.4,2512.9,9.52125397]
[1725285530926,3.97871,2513.4,2513.0,2.3089]
[1725285531125,3.97871,2513.4,2513.0,5.3089]
[1725285531324,3.97863,2513.5,2513.0,5.3089]
[1725285531908,3.97875,2513.4,2513.0,5.3089]
[1725285532137,7.95783,2513.3,2513.0,3.0]
[1725285532339,7.95783,2513.3,2512.9,3.0]
[1725285532550,7.95776,2513.3,2512.9,3.0]
[1725285533250,7.95779,2513.3,2512.9,3.0]
[1725285533556,3.97927,2513.1,2512.9,3.0]
[1725285533714,3.97927,2513.1,2512.8,5.3089]
[1725285533922,7.95853,2513.1,2512.8,5.3089]
[1725285534236,3.97926,2513.1,2512.8,5.3089]
[1725285535112,3.97926,2513.1,2512.8,3.0]
[1725285535113,3.97946,2512.9,2512.8,3.0]
[1725285535320,3.97962,2512.8,2512.7,19.79]
[1725285535620,3.97978,2512.7,2512.6,19.79]
[1725285536615,8.99538,2512.7,2512.6,19.79]
[1725285537060,8.99538,2512.7,2512.6,22.79]
[1725285541132,3.97978,2512.7,2512.6,22.79]
[1725285547252,7.95956,2512.7,2512.6,22.79]
[1725285548007,3.97978,2512.7,2512.6,22.79]
[1725285548151,7.95956,2512.7,2512.6,22.79]
[1725285548351,3.97978,2512.7,2512.6,22.79]
[1725285548552,8.993651,2512.7,2512.6,22.79]
[1725285548791,5.013871,2512.7,2512.6,22.79]
[1725285549189,8.993651,2512.7,2512.6,22.79]
[1725285549789,5.013871,2512.7,2512.6,22.79]
[1725285549997,8.993651,2512.7,2512.6,22.79]
[1725285550727,8.993651,2512.7,2512.6,3.0]
[1725285550871,3.98037,2512.4,2512.0,5.4174]
[1725285551282,3.98037,2512.4,2512.0,8.91243944]
[1725285552177,3.98044,2512.3,2512.0,3.0]
[1725285552503,3.9805,2512.3,2511.9,22.79]
[1725285552861,3.98058,2512.2,2511.9,22.79]
[1725285553662,7.96128,2512.2,2511.9,22.79]
[1725285554305,3.98073,2512.1,2511.9,22.79]
[1725285556498,3.98073,2512.1,2511.9,3.0]
[1725285556699,3.98059,2512.2,2511.9,3.0]
[1725285559075,3.98059,2512.2,2511.9,6.83797644]
[1725285559408,3.98059,2512.2,2512.0,2.2625]
[1725285560006,3.9803,2512.4,2512.0,2.2625]
[1725285560007,3.98043,2512.3,2512.0,2.2625]
[1725285560380,3.9803,2512.4,2512.0,2.3421146]
[1725285560571,3.98019,2512.5,2512.2,2.3326]
[1725285561120,3.98019,2512.5,2512.2,5.3326]
[1725285561269,3.97999,2512.6,2512.2,5.3326]
[1725285561471,3.97999,2512.6,2512.2,9.31317]
[1725285562171,3.97972,2512.8,2512.3,3.9804]
[1725285562507,3.97994,2512.6,2512.4,3.0]
[1725285562866,3.97994,2512.6,2512.3,3.0]
[1725285565128,7.95997,2512.6,2512.3,3.0]
[1725285565290,3.98013,2512.5,2512.3,3.0]
[1725285565640,3.98009,2512.5,2512.3,3.0]
[1725285565790,7.9605,2512.4,2512.3,3.0]
[1725285566325,10.2565,2512.4,2512.3,3.0]
[1725285568843,3.9809,2512.0,2511.7,5.3276]
[1725285569330,3.98106,2511.9,2511.7,3.0]
[1725285569547,3.98123,2511.8,2511.6,3.0]
[1725285569721,3.98106,2511.9,2511.6,3.0]
[1725285570053,7.96226,2511.9,2511.6,3.0]
[1725285570727,3.98136,2511.7,2511.6,3.0]
[1725285571048,3.98136,2511.7,2511.4,5.3641]
[1725285571417,3.98116,2511.9,2511.5,1.78111436]
[1725285571628,3.9812,2511.8,2511.6,2.89937434]
[1725285571922,3.9812,2511.8,2511.5,4.78111436]
[1725285571923,7.9624,2511.8,2511.7,3.0]
[1725285572108,3.98143,2511.7,2511.5,3.0]
[1725285572305,3.98143,2511.7,2511.4,3.0]
[1725285572547,3.98143,2511.7,2511.4,6.27184303]
[1725285572747,3.98143,2511.7,2511.4,8.05295739]
[1725285573911,3.9812,2511.8,2511.4,3.0]
[1725285573912,3.98153,2511.6,2511.4,3.0]
[1725285574512,3.98153,2511.6,2511.3,5.4133]
[1725285575254,3.98176,2511.5,2511.3,5.4133]
[1725285576106,3.98152,2511.6,2511.3,5.4133]
[1725285577487,3.98137,2511.7,2511.3,5.4133]
[1725285577785,3.98133,2511.8,2511.3,15.19118992]
[1725285578656,3.98133,2511.8,2511.4,3.98182]
[1725285578857,3.98133,2511.8,2511.5,3.0]
[1725285579890,3.98132,2511.8,2511.5,3.0]
[1725285580093,3.98132,2511.8,2511.4,3.0]
[1725285580452,7.96263,2511.8,2511.4,3.0]
[1725285580692,3.98128,2511.8,2511.4,3.0]
[1725285580988,3.98146,2511.7,2511.4,3.0]
[1725285581194,3.98146,2511.7,2511.3,5.4133]
[1725285581490,3.98161,2511.6,2511.3,5.4133]
[1725285581654,3.98161,2511.6,2511.3,2.4133]
[1725285582280,3.98146,2511.7,2511.3,2.4133]
[1725285582872,7.96293,2511.7,2511.3,2.4133]
[1725285583273,2.321,2511.5,2511.2,6.98213]
[1725285583504,2.321,2511.5,2511.1,5.76334436]
[1725285583505,3.98186,2511.4,2510.8,6.37639]
[1725285583722,3.98201,2511.3,2510.8,6.37639]
[1725285583865,3.98201,2511.3,2510.8,9.56943144]
[1725285584379,3.98201,2511.3,2510.9,3.98263]
[1725285584778,3.98201,2511.3,2511.0,3.0]
[1725285586381,3.9818,2511.5,2511.0,6.98232]
[1725285586586,4.777733,2511.7,2511.1,6.24353]
[1725285586587,3.98155,2511.6,2511.1,6.24353]
[1725285586904,3.98155,2511.6,2511.2,3.0]
[1725285588014,3.9817,2511.5,2511.2,3.0]
[1725285589077,3.98186,2511.4,2511.0,9.25766]
[1725285589579,3.98202,2511.3,2511.0,5.2752]
[1725285590219,3.98216,2511.2,2511.0,3.0]
[1725285592357,3.98231,2511.1,2511.0,3.0]
[1725285592708,7.047657,2511.1,2511.0,3.0]
[1725285592939,3.98216,2511.2,2511.0,3.0]
[1725285593147,3.98216,2511.2,2510.8,3.0]
[1725285593148,3.98238,2511.1,2510.8,3.0]
[1725285593351,3.98238,2511.1,2510.7,5.467]
[1725285593709,3.98248,2511.0,2510.7,5.467]
[1725285594158,3.98232,2511.1,2510.8,3.0]
[1725285594343,3.98232,2511.1,2510.7,2.467]
[1725285597658,3.98248,2511.0,2510.7,2.467]
[1725285598354,3.98228,2511.2,2510.7,6.44994]
[1725285598517,7.96453,2511.2,2510.8,3.0]
[1725285598858,3.982,2511.3,2510.9,2.4171]
[1725285599559,3.98217,2511.2,2510.8,3.0]
[1725285599727,3.98238,2511.1,2510.8,3.0]
[1725285599933,3.98238,2511.1,2510.7,5.3803]
[1725285599934,4.778844,2511.1,2510.7,5.3803]
[1725285600258,4.778844,2511.1,2510.5,5.76430436]
[1725285600259,3.98248,2511.0,2510.8,3.0]
[1725285600551,3.98248,2511.0,2510.6,3.0]
[1725285602417,3.98184,2511.4,2510.9,5.76364436]
[1725285602623,3.98184,2511.4,2511.0,3.0]
[1725285603060,3.98184,2511.4,2510.9,4.78111436]
[1725285603279,3.98184,2511.4,2511.0,0.75252203]
[1725285603575,3.98184,2511.4,2511.0,3.75252203]
[1725285603857,3.9817,2511.5,2511.0,3.75252203]
[1725285606273,2.4793,2511.8,2511.1,3.42672464]
[1725285606568,3.26670094,2512.5,2511.4,6.45684]
[1725285606569,10.44127,2512.0,2511.4,6.45684]
[1725285606721,11.485397,2512.0,2511.5,3.0]
[1725285607174,3.98105,2511.9,2511.4,5.4751]
[1725285607419,3.98121,2511.8,2511.4,5.4751]
[1725285608310,10.44126,2512.0,2511.4,6.420797]
[1725285608618,3.98108,2511.9,2511.4,6.420797]
[1725285609879,3.98098,2512.0,2511.4,6.420797]
[1725285610080,3.98076,2512.1,2511.5,7.96317]
[1725285610292,3.98076,2512.1,2511.7,2.4028]
[1725285610727,3.98076,2512.1,2511.6,3.0]
[1725285610934,3.98136,2511.7,2511.6,3.0]
[1725285611132,3.98136,2511.7,2511.3,3.0]
[1725285611431,3.98118,2511.9,2511.4,3.98171]
[1725285611607,3.98118,2511.9,2511.5,3.0]
[1725285611994,3.98081,2512.1,2511.6,2.3912]
[1725285612231,3.98089,2512.0,2511.6,2.3912]
[1725285612430,3.98089,2512.0,2511.6,5.3912]
[1725285613994,3.98074,2512.1,2511.6,5.3912]
[1725285614200,3.98074,2512.1,2511.6,9.37263]
[1725285615296,6.42301,2512.0,2511.6,3.0]
[1725285615492,3.98091,2512.0,2511.6,3.0]
[1725285615744,3.98091,2512.0,2511.7,2.3156]
[1725285616038,3.98091,2512.0,2511.7,5.3156]
[1725285616395,0.796132,2512.1,2511.7,2.3156]
[1725285616635,6.34365,2512.4,2511.7,6.29685]
[1725285616831,6.34365,2512.4,2511.8,3.0]
[1725285616832,7.96125,2512.2,2511.8,3.0]
[1725285617043,8.993705,2512.2,2511.8,3.0]
[1725285617421,3.98073,2512.1,2511.8,3.0]
[1725285619744,3.9809,2512.0,2511.7,5.3156]
[1725285619946,7.9624,2511.8,2511.7,3.0]
[1725285620158,3.98144,2511.7,2511.5,3.0]
[1725285620947,3.9812,2511.8,2511.5,3.0]
[1725285621519,7.96251,2511.8,2511.5,3.0]
[1725285622124,7.96251,2511.8,2511.4,5.3984]
[1725285622337,0.8993945,2512.0,2511.4,9.38021]
[1725285622338,3.98105,2511.9,2511.4,9.38021]
[1725285622649,3.98105,2511.9,2511.5,2.3984]
[1725285622852,3.98105,2511.9,2511.5,5.3984]
[1725285623147,7.96198,2512.0,2511.5,9.38]
[1725285623347,3.98097,2512.0,2511.5,9.38]
[1725285623657,3.98097,2512.0,2511.6,2.3984]
[1725285623949,3.98097,2512.0,2511.6,9.3799]
[1725285624153,3.98075,2512.1,2511.6,9.3799]
[1725285624712,3.98075,2512.1,2511.7,2.2852]
[1725285624945,3.98075,2512.1,2511.7,5.2852]
[1725285626539,3.98071,2512.2,2511.8,6.32002]
[1725285626540,3.98066,2512.2,2511.8,6.32002]
[1725285626750,3.98066,2512.2,2511.9,3.0]
[1725285627142,3.98066,2512.2,2511.8,5.3389]
[1725285628223,3.98038,2512.4,2511.8,5.3389]
[1725285628224,3.9801,2512.5,2512.0,3.98077]
[1725285628529,3.98004,2512.6,2512.1,6.98064]
[1725285628740,3.98002,2512.6,2512.1,6.98064]
[1725285629853,3.9801,2512.5,2512.1,3.0]
[1725285630026,3.98056,2512.3,2512.0,5.3929]
[1725285630227,3.98056,2512.3,2512.0,2.3929]
[1725285630425,3.98057,2512.2,2512.0,2.3929]
[1725285632328,3.98043,2512.3,2512.0,2.3929]
[1725285632528,3.97983,2512.7,2512.0,7.48915944]
[1725285632757,3.97983,2512.7,2512.1,3.0]
[1725285633373,3.98011,2512.5,2512.1,6.98072]
[1725285634830,3.98011,2512.5,2512.1,3.0]
[1725285635029,4.378121,2512.5,2512.1,3.0]
[1725285635269,3.98011,2512.5,2512.0,5.3929]
[1725285635828,3.97989,2512.7,2512.1,2.496]
[1725285635829,3.97998,2512.6,2512.1,2.496]
[1725285636035,3.97998,2512.6,2512.1,9.47665]
[1725285636548,3.97998,2512.6,2512.1,10.99371202]
[1725285638078,7.95979,2512.7,2512.3,2.3445]
[1725285638262,3.97994,2512.6,2512.3,5.3445]
[1725285638933,3.97994,2512.6,2512.3,2.3445]
[1725285651498,3.97979,2512.7,2512.3,6.32491]
[1725285651873,3.97979,2512.7,2512.4,3.0]
[1725285652166,3.97979,2512.7,2512.3,2.3445]
[1725285652466,3.97979,2512.7,2512.3,6.32488]
[1725285652791,3.97979,2512.7,2512.4,3.0]
[1725285655378,3.97948,2512.9,2512.4,6.98025]
[1725285655586,3.97962,2512.8,2512.4,6.98025]
[1725285655770,3.97962,2512.8,2512.5,2.268]
[1725285655974,3.97946,2512.9,2512.5,2.268]
[1725285657874,6.40257,2512.7,2512.4,3.0]
[1725285658076,6.40257,2512.7,2512.2,23.77055]
[1725285658077,6.40257,2512.7,2512.3,3.0]